bitfinex-derivatives/quotes_ETHF0:USTF0_20210110
["timestamp","ask_amount","ask_price","bid_price","bid_amount"]
[1610317349415,4.00959,1277.0,1276.9,3.59297116]
[1610317350116,34.00959,1277.0,1276.9,3.59297116]
[1610317350315,4.00959,1277.0,1276.9,3.59297116]
[1610317351317,34.00959,1277.0,1276.9,1.20007116]
[1610317351717,52.2804337,1277.0,1276.9,1.20007116]
[1610317352117,34.00959,1277.0,1276.3,1.20095999]
[1610317352517,52.27999402,1277.0,1276.3,1.20095999]
[1610317352718,14.42475823,1276.5,1276.3,1.20095999]
[1610317353118,14.42469682,1276.6,1276.3,1.20095999]
[1610317353518,4.00959,1276.4,1276.3,1.20095999]
[1610317355519,18.43488461,1276.4,1276.3,1.20095999]
[1610317357120,4.00959,1276.4,1276.3,1.20095999]
[1610317357824,4.00959,1276.4,1276.0,1.20109149]
[1610317358323,14.42779107,1276.2,1276.0,1.20109149]
[1610317359323,14.42779107,1276.2,1275.8,4.00959]
[1610317359324,14.42779107,1276.2,1275.9,1.20117995]
[1610317359525,4.00959,1276.0,1275.9,1.20117995]
[1610317362127,18.43821718,1276.0,1275.9,1.20117995]
[1610317362326,18.43821718,1276.0,1275.6,4.00959]
[1610317362929,12.50539812,1275.8,1275.6,4.00959]
[1610317363532,4.00959,1275.7,1275.6,4.00959]
[1610317364330,16.51616429,1275.7,1275.6,4.00959]
[1610317364531,16.51616429,1275.7,1275.4,2.4405]
[1610317364730,16.51616429,1275.7,1275.3,64.5189]
[1610317365230,10.58501796,1275.4,1275.3,64.5189]
[1610317365630,10.58501796,1275.4,1275.3,68.52849]
[1610317366630,4.00959,1275.5,1275.3,68.52849]
[1610317366829,4.00959,1275.5,1275.3,72.07774729]
[1610317367030,4.00959,1275.5,1275.3,7.55884729]
[1610317367731,16.51916421,1275.5,1275.3,7.55884729]
[1610317368132,16.51916421,1275.5,1275.4,1.20163258]
[1610317369031,4.00959,1275.5,1275.3,6.35729]
[1610317369433,16.51980793,1275.5,1275.4,1.2016347]
[1610317369633,4.00959,1275.5,1275.4,1.2016347]
[1610317369932,16.52004475,1275.5,1275.4,1.2016347]
[1610317370435,16.52004475,1275.5,1275.3,6.35729]
[1610317370836,16.52004475,1275.5,1275.4,1.20164711]
[1610317371236,4.00959,1275.5,1275.4,1.20164711]
[1610317372638,16.51968832,1275.5,1275.4,1.20164711]
[1610317373042,4.00959,1275.5,1275.4,1.20164711]
[1610317374039,14.43373465,1275.7,1275.4,1.20164711]
[1610317375642,18.44332465,1275.7,1275.6,4.00959]
[1610317375843,4.00959,1275.7,1275.6,4.00959]
[1610317376240,4.00959,1275.7,1275.4,1.20164711]
[1610317376641,14.43639154,1275.5,1275.4,1.20164711]
[1610317377642,18.44598154,1275.5,1275.4,1.20164711]
[1610317378442,48.44598154,1275.5,1275.4,1.20164711]
[1610317379143,34.00959,1275.5,1275.4,1.20164711]
[1610317380047,50.37292709,1275.5,1275.4,1.20164711]
[1610317380849,52.30019129,1275.5,1275.4,1.20164711]
[1610317382148,52.30019129,1275.5,1274.3,4.00959]
[1610317382548,10.5929526,1274.4,1274.3,4.00959]
[1610317383352,10.59321515,1274.5,1274.3,4.00959]
[1610317383550,10.59321515,1274.5,1274.3,7.55052208]
[1610317383752,4.00959,1274.4,1274.3,7.55052208]
[1610317384355,12.51938745,1274.5,1274.3,7.55052208]
[1610317385556,12.51876966,1274.6,1274.3,7.55052208]
[1610317385755,12.51876966,1274.6,1274.5,4.00959]
[1610317385958,18.45440301,1274.7,1274.5,4.00959]
[1610317387456,18.45440301,1274.7,1274.6,1.20276212]
[1610317387857,4.00959,1274.7,1274.6,1.20276212]
[1610317388558,18.45465752,1274.7,1274.6,1.20276212]
[1610317388958,14.44449131,1274.8,1274.6,1.20276212]
[1610317389358,14.44328549,1274.9,1274.6,3.22886212]
[1610317389762,14.44328549,1274.9,1274.8,4.00959]
[1610317389962,18.45218994,1275.0,1274.8,4.00959]
[1610317390362,14.44259994,1275.0,1274.8,4.00959]
[1610317390563,12.51523311,1274.9,1274.8,4.00959]
[1610317390963,6.0173,1275.9,1274.8,4.00959]
[1610317390964,14.43905619,1275.3,1274.8,4.00959]
[1610317391164,12.51482888,1275.0,1274.8,4.00959]
[1610317391966,12.51482888,1275.0,1274.9,1.20230829]
[1610317392163,12.51365493,1275.1,1274.9,2.95240829]
[1610317393264,12.51365493,1275.1,1275.0,1.20220712]
[1610317393665,12.51365493,1275.1,1275.0,5.21179712]
[1610317394465,12.51307665,1275.2,1275.0,5.19169565]
[1610317394964,12.51167353,1275.2,1275.0,5.19169565]
[1610317395565,12.51221138,1275.1,1275.0,5.19169565]
[1610317397167,12.51215012,1275.2,1275.0,5.19169565]
[1610317399168,12.51215012,1275.2,1275.1,1.20199204]
[1610317399968,12.51141472,1275.3,1275.1,1.20199204]
[1610317400371,12.51213862,1275.2,1275.1,1.20199204]
[1610317405576,12.51232485,1275.3,1275.1,1.20199204]
[1610317405775,12.51232485,1275.3,1275.2,4.00959]
[1610317406174,12.51232485,1275.3,1275.2,5.91059]
[1610317407675,12.51232485,1275.3,1275.2,7.11253482]
[1610317409177,12.51118121,1275.4,1275.2,7.11253482]
[1610317409777,14.43504513,1275.7,1275.2,7.11253482]
[1610317409778,12.51063922,1275.5,1275.2,7.11253482]
[1610317410579,8.66152898,1275.3,1275.2,5.91059]
[1610317411182,8.66151002,1275.4,1275.2,5.91059]
[1610317411581,8.66083283,1275.5,1275.2,5.91059]
[1610317411781,8.66015415,1275.6,1275.2,5.91059]
[1610317411984,8.66015415,1275.6,1275.4,4.00959]
[1610317412187,8.65770338,1275.8,1275.5,30.0]
[1610317412387,8.65770338,1275.8,1275.5,31.6662]
[1610317412588,8.65588736,1276.1,1275.5,31.6662]
[1610317412990,47.9755,1276.2,1275.5,31.6662]
[1610317413390,8.65387173,1276.5,1275.6,52.7934]
[1610317413591,8.65387173,1276.5,1275.7,30.0]
[1610317413792,8.65318203,1276.6,1275.7,30.0]
[1610317413989,8.65318203,1276.6,1276.4,4.00959]
[1610317414188,8.65318203,1276.6,1276.4,5.73289]
[1610317414390,8.65294154,1276.7,1276.4,5.73289]
[1610317414889,8.65294154,1276.7,1276.5,1.20052646]
[1610317415389,8.6524948,1276.8,1276.5,1.20052646]
[1610317415589,8.6524948,1276.8,1276.4,5.73289]
[1610317415991,8.6524948,1276.8,1276.7,4.00959]
[1610317416190,8.6524948,1276.8,1276.7,5.74119]
[1610317417496,8.6524948,1276.8,1276.7,6.94160181]
[1610317417895,8.6513586,1276.9,1276.7,6.94160181]
[1610317418495,8.65118849,1277.0,1276.7,6.94160181]
[1610317419095,8.65118849,1277.0,1276.8,1.20035218]
[1610317419495,8.65056612,1277.1,1276.8,1.20035218]
[1610317419897,8.65056612,1277.1,1277.0,4.00959]
[1610317420296,8.65056612,1277.1,1277.0,6.47469]
[1610317420497,8.65022487,1277.2,1277.0,6.47469]
[1610317421796,8.65022487,1277.2,1277.1,1.20000621]
[1610317422196,8.65012015,1277.3,1277.1,1.20000621]
[1610317422396,8.65009884,1277.2,1277.1,1.20000621]
[1610317422797,8.64989745,1277.3,1277.1,1.20000621]
[1610317423198,8.6500868,1277.2,1277.1,56.91860621]
[1610317423398,8.65018382,1277.3,1277.1,56.91860621]
[1610317423998,8.65018382,1277.3,1277.2,4.00959]
[1610317424597,8.65018382,1277.3,1277.2,5.20962817]
[1610317426903,8.65000979,1277.4,1277.2,5.20962817]
[1610317429005,8.65000979,1277.4,1277.3,1.19999488]
[1610317429205,8.65000979,1277.4,1277.3,3.70459488]
[1610317432106,8.64850372,1277.5,1277.3,3.70459488]
[1610317432710,10.56914708,1277.7,1277.3,3.70459488]
[1610317432711,8.64801189,1277.6,1277.3,3.70459488]
[1610317433010,8.64801189,1277.6,1277.4,1.19961124]
[1610317433809,8.64742918,1277.7,1277.4,1.19961124]
[1610317434008,8.64742918,1277.7,1277.6,4.00959]
[1610317434210,10.56852321,1277.8,1277.6,6.34699]
[1610317434211,8.64721908,1277.8,1277.6,6.34699]
[1610317434611,8.64646529,1277.9,1277.6,6.34699]
[1610317434812,8.64646529,1277.9,1277.6,69.66869]
[1610317435413,8.64454726,1278.2,1277.6,69.66869]
[1610317435615,8.64363247,1278.4,1277.6,69.66869]
[1610317436013,8.64356069,1278.5,1278.3,4.00959]
[1610317436214,8.64356069,1278.5,1278.3,6.51289]
[1610317437413,8.64356069,1278.5,1278.4,1.19905615]
[1610317440624,8.64279556,1278.6,1278.4,1.19905615]
[1610317441325,8.64208599,1278.7,1278.4,1.19905615]
[1610317441625,8.64192723,1278.8,1278.4,1.19905615]
[1610317442067,8.64192723,1278.8,1278.7,4.00959]
[1610317442227,8.64192723,1278.8,1278.7,5.98239]
[1610317442427,10.5612892,1278.9,1278.7,5.98239]
[1610317443029,8.64201386,1278.8,1278.7,5.98239]
[1610317443231,8.64201386,1278.8,1278.7,7.18131227]
[1610317444232,8.64040231,1278.9,1278.7,7.18131227]
[1610317444432,8.64029531,1279.0,1278.7,7.18131227]
[1610317445839,8.63987364,1279.1,1278.7,7.18131227]
[1610317446037,8.63987364,1279.1,1279.0,4.00959]
[1610317446237,8.63987364,1279.1,1279.0,6.38379]
[1610317447537,10.5583656,1279.3,1279.0,6.38379]
[1610317447737,8.63904401,1279.2,1279.0,7.58216515]
[1610317449137,8.63904401,1279.2,1279.1,1.19828693]
[1610317450538,8.63835915,1279.3,1279.1,1.19828693]
[1610317451440,8.63835915,1279.3,1279.2,51.3572]
[1610317452041,8.63835915,1279.3,1279.2,55.36679]
[1610317452241,8.63835915,1279.3,1279.2,56.56507693]
[1610317457748,8.63789426,1279.4,1279.2,56.56507693]
[1610317459549,8.63789426,1279.4,1279.3,1.19813202]
[1610317459749,8.63789426,1279.4,1279.3,3.00843202]
[1610317461256,8.63688342,1279.5,1279.3,3.00843202]
[1610317462150,8.63688342,1279.5,1279.4,4.00959]
[1610317462553,8.63688342,1279.5,1279.4,5.20761714]
[1610317462953,8.63671483,1279.6,1279.4,5.20761714]
[1610317463354,8.63659818,1279.5,1279.4,5.20761714]
[1610317463860,8.63500018,1279.6,1279.4,5.20761714]
[1610317464058,8.63500018,1279.6,1279.5,1.19781923]
[1610317464560,8.6336433,1279.8,1279.5,1.19781923]
[1610317464960,8.63318025,1279.9,1279.5,1.19781923]
[1610317465161,8.63224101,1280.0,1279.5,1.19781923]
[1610317465561,8.63228726,1280.1,1279.5,1.19781923]
[1610317466159,8.63228726,1280.1,1280.0,4.00959]
[1610317466462,8.63228726,1280.1,1280.0,5.59349]
[1610317468166,8.63228726,1280.1,1280.0,6.79095586]
[1610317468366,8.63136786,1280.2,1280.0,6.79095586]
[1610317469167,8.63060225,1280.3,1280.0,6.79095586]
[1610317469567,8.63060225,1280.3,1280.1,1.19732773]
[1610317470271,8.63060225,1280.3,1280.2,4.00959]
[1610317471170,8.62889504,1280.7,1280.2,4.00959]
[1610317471370,8.62909928,1280.6,1280.2,4.00959]
[1610317472274,8.62909928,1280.6,1280.5,4.00959]
[1610317472673,10.54561217,1280.7,1280.5,5.93309]
[1610317472874,8.62949874,1280.6,1280.5,5.93309]
[1610317473175,10.54561217,1280.7,1280.5,5.93309]
[1610317473574,10.54627822,1280.6,1280.5,5.93309]
[1610317474176,10.54611167,1280.7,1280.5,5.93309]
[1610317474575,10.54630511,1280.6,1280.5,5.93309]
[1610317475278,10.54651447,1280.7,1280.5,7.13041174]
[1610317475678,12.46247407,1280.9,1280.5,7.13041174]
[1610317475679,10.54669308,1280.6,1280.5,7.13041174]
[1610317476382,8.62940747,1280.6,1280.5,7.13041174]
[1610317476785,8.62924278,1280.7,1280.5,7.13041174]
[1610317477283,8.62927657,1280.6,1280.5,7.13041174]
[1610317478886,8.62927657,1280.6,1280.5,5.93309]
[1610317479385,8.62927657,1280.6,1280.5,7.13030799]
[1610317480386,8.62899566,1280.7,1280.5,7.13030799]
[1610317481086,8.62890462,1280.6,1280.5,7.13030799]
[1610317481687,10.54537428,1280.7,1280.5,7.13030799]
[1610317482086,10.54574659,1280.6,1280.5,7.13030799]
[1610317483891,12.46271762,1280.8,1280.5,7.13030799]
[1610317484292,12.46220083,1280.9,1280.7,4.00959]
[1610317484692,12.46116271,1281.0,1280.7,4.00959]
[1610317485091,12.46116271,1281.0,1280.8,1.19662405]
[1610317485291,12.46116271,1281.0,1280.8,3.30032405]
[1610317486192,12.46116271,1281.0,1280.9,4.00959]
[1610317486393,12.4599422,1281.1,1280.9,5.20615799]
[1610317487296,12.46090257,1281.0,1280.9,5.20615799]
[1610317487596,14.37735361,1281.2,1280.9,5.20615799]
[1610317487795,14.37735361,1281.2,1281.0,1.19669605]
[1610317488196,14.37735361,1281.2,1281.1,4.00959]
[1610317488596,14.37735361,1281.2,1281.1,5.60889]
[1610317489599,14.37735361,1281.2,1281.1,6.80553726]
[1610317489897,16.29326402,1281.4,1281.1,6.80553726]
[1610317490297,14.37701294,1281.2,1281.1,2.79594726]
[1610317492100,14.37612007,1281.3,1281.1,2.79594726]
[1610317492299,14.37612007,1281.3,1281.2,4.00959]
[1610317492799,14.37528538,1281.4,1281.2,4.00959]
[1610317493400,14.3753199,1281.3,1281.2,4.00959]
[1610317493799,14.3752537,1281.4,1281.2,4.00959]
[1610317494199,14.3752537,1281.4,1281.2,5.20612043]
[1610317495405,14.3740428,1281.5,1281.2,5.20612043]
[1610317495605,14.3740428,1281.5,1281.3,1.19652099]
[1610317496405,14.3740428,1281.5,1281.4,4.00959]
[1610317496606,14.3740428,1281.5,1281.4,6.36319]
[1610317497708,14.37402747,1281.6,1281.4,6.36319]
[1610317498509,14.37402747,1281.6,1281.4,7.55970017]
[1610317499109,14.3715894,1281.7,1281.4,7.55970017]
[1610317499509,14.37233209,1281.6,1281.4,7.55970017]
[1610317499911,14.37189506,1281.7,1281.5,1.19621629]
[1610317500310,14.37189506,1281.7,1281.6,4.00959]
[1610317500712,14.37220383,1281.8,1281.6,4.00959]
[1610317501413,14.37220383,1281.8,1281.6,5.20579278]
[1610317501714,14.36928549,1281.9,1281.6,5.20579278]
[1610317502014,20.47911811,1282.4,1281.6,5.20579278]
[1610317502015,12.45389158,1281.8,1281.6,5.20579278]
[1610317502814,12.45361582,1281.9,1281.7,1.19620062]
[1610317503015,12.45361582,1281.9,1281.7,2.88830062]
[1610317504216,12.45361582,1281.9,1281.8,1.1960216]
[1610317504416,12.45361582,1281.9,1281.8,5.2056116]
[1610317505217,14.3681943,1282.2,1281.8,5.2056116]
[1610317505417,12.45340707,1281.9,1281.8,5.2056116]
[1610317506016,12.45220291,1282.0,1281.8,5.2056116]
[1610317506919,12.45220291,1282.0,1281.9,1.19584161]
[1610317508024,12.45163887,1282.1,1281.9,1.19584161]
[1610317508223,14.36681391,1282.3,1281.9,1.19584161]
[1610317508224,10.53550409,1282.0,1281.9,1.19584161]
[1610317509023,10.53519781,1282.1,1281.9,1.19584161]
[1610317509625,10.53398603,1282.0,1281.9,1.19584161]
[1610317509926,10.53371207,1282.1,1281.9,1.19584161]
[1610317510427,10.53371207,1282.1,1282.0,4.00959]
[1610317510627,10.53371207,1282.1,1282.0,6.45039]
[1610317511428,10.53371207,1282.1,1282.0,7.64566191]
[1610317512628,10.53214411,1282.2,1282.0,7.64566191]
[1610317512928,10.53246478,1282.1,1282.0,7.64566191]
[1610317515228,8.61801112,1282.1,1282.0,7.64566191]
[1610317516833,8.61766819,1282.2,1282.0,7.64566191]
[1610317518534,8.61766819,1282.2,1282.1,1.19504318]
[1610317519035,8.61670521,1282.3,1282.1,1.19504318]
[1610317520338,8.61670521,1282.3,1282.2,4.00959]
[1610317521238,10.53046539,1282.4,1282.2,4.00959]
[1610317521438,10.53046539,1282.4,1282.2,5.20467444]
[1610317522341,8.6165878,1282.4,1282.2,5.20467444]
[1610317522742,8.6165878,1282.4,1282.3,1.19499073]
[1610317523342,8.6165878,1282.4,1282.3,2.88139073]
[1610317525745,8.61572133,1282.5,1282.3,2.88139073]
[1610317526545,8.61572133,1282.5,1282.4,67.19169]
[1610317526946,8.61572133,1282.5,1282.4,68.38648321]
[1610317528147,8.61526061,1282.6,1282.4,68.38648321]
[1610317529647,8.61526061,1282.6,1282.5,1.19480402]
[1610317531651,8.61484632,1282.7,1282.5,1.19480402]
[1610317532251,10.52858008,1282.8,1282.5,1.19480402]
[1610317532252,8.61494659,1282.6,1282.5,1.19480402]
[1610317533053,8.61494788,1282.7,1282.5,1.19480402]
[1610317533453,8.6149886,1282.6,1282.5,1.19480402]
[1610317533956,8.61471724,1282.7,1282.5,1.19480402]
[1610317534454,8.61471724,1282.7,1282.6,4.00959]
[1610317534655,8.61471724,1282.7,1282.6,6.20169]
[1610317535654,8.61471724,1282.7,1282.6,7.39649288]
[1610317537360,8.61447039,1282.8,1282.6,7.39649288]
[1610317538260,8.61447039,1282.8,1282.7,1.1947882]
[1610317540764,8.61417701,1282.9,1282.7,1.1947882]
[1610317542565,8.61417701,1282.9,1282.8,4.00959]
[1610317542966,8.63399947,1283.0,1282.8,4.00959]
[1610317543766,0.02,1283.0,1282.8,4.00959]
[1610317543966,8.63347906,1283.0,1282.9,1.194613]
[1610317544268,8.63347906,1283.0,1282.9,2.928413]
[1610317544467,0.02,1283.0,1282.9,2.928413]
[1610317547168,8.63341518,1283.0,1282.9,2.928413]
[1610317547570,0.02,1283.0,1282.9,2.928413]
[1610317549971,8.63321791,1283.0,1282.9,2.928413]
[1610317554575,0.02,1283.0,1282.9,2.928413]
[1610317560384,0.02,1283.0,1282.9,32.928413]
[1610317561583,0.02,1283.0,1282.9,2.928413]
[1610317568689,8.61004482,1283.5,1282.9,2.928413]
[1610317569689,8.61004482,1283.5,1283.0,1.19426606]
[1610317570690,8.61004482,1283.5,1283.4,4.00959]
[1610317571091,10.52315423,1283.6,1283.4,5.66289]
[1610317571493,10.5214788,1283.5,1283.4,5.66289]
[1610317572393,10.5214788,1283.5,1283.4,6.85706847]
[1610317573794,10.4054788,1283.5,1283.4,6.85706847]
[1610317574994,12.43422411,1283.8,1283.4,6.85706847]
[1610317576697,12.43422411,1283.8,1283.5,1.19417325]
[1610317576899,12.43422411,1283.8,1283.7,4.00959]
[1610317577112,12.43422411,1283.8,1283.7,6.38089]
[1610317578300,12.43422411,1283.8,1283.7,7.57504638]
[1610317580102,14.34523576,1284.0,1283.7,7.57504638]
[1610317580904,14.34523576,1284.0,1283.9,4.00959]
[1610317581303,16.25742857,1284.2,1283.9,4.00959]
[1610317582405,16.25742857,1284.2,1284.0,1.19418925]
[1610317582808,16.25742857,1284.2,1284.1,4.00959]
[1610317584007,16.25742857,1284.2,1284.1,5.20381472]
[1610317584407,22.17896827,1284.4,1284.1,5.20381472]
[1610317584608,8.3225,1284.3,1284.1,5.20381472]
[1610317584808,4.00959,1284.2,1284.1,5.20381472]
[1610317585208,4.00959,1284.2,1284.1,1.19422472]
[1610317585412,4.00959,1284.2,1283.7,2.3713]
[1610317585608,4.00959,1284.2,1283.4,1.6533]
[1610317585807,30.0,1283.9,1283.4,1.6533]
[1610317586010,14.34603261,1283.6,1280.8,0.21987435]
[1610317586407,10.523101,1283.0,1280.7,0.22005299]
[1610317586608,8.61103893,1282.8,1280.7,0.22005299]
[1610317586807,8.61103893,1282.8,1282.7,5.20391768]
[1610317587810,10.52384141,1282.8,1282.7,5.20391768]
[1610317588008,40.52384141,1282.8,1282.7,5.20391768]
[1610317588209,10.52384141,1282.8,1282.7,5.20391768]
[1610317588409,42.43808897,1282.9,1282.7,5.20391768]
[1610317588611,42.43808897,1282.9,1282.7,6.82891768]
[1610317588809,4.00959,1282.8,1282.7,6.82891768]
[1610317589009,16.44879841,1282.8,1282.7,6.82891768]
[1610317589311,16.44879841,1282.8,1282.7,5.63459]
[1610317589911,4.00959,1282.8,1282.7,5.63459]
[1610317590910,18.36409393,1282.8,1282.7,5.20438879]
[1610317591111,48.36409393,1282.8,1282.7,5.20438879]
[1610317592512,18.36409393,1282.8,1282.7,5.20438879]
[1610317594315,18.36409393,1282.8,1282.7,4.00959]
[1610317595016,18.36409393,1282.8,1282.7,5.20456832]
[1610317596117,18.36409393,1282.8,1282.7,1.19497832]
[1610317596621,4.00959,1282.8,1282.7,1.19497832]
[1610317597320,34.00959,1282.8,1282.7,1.19497832]
[1610317597720,34.00959,1282.8,1282.3,1.19497939]
[1610317598021,50.28094611,1282.8,1282.3,1.19497939]
[1610317598422,44.35798585,1282.5,1282.3,1.19497939]
[1610317598623,14.35798585,1282.5,1282.3,1.19497939]
[1610317599824,30.0,1282.4,1282.3,1.19497939]
[1610317600024,44.35898214,1282.4,1282.3,1.19497939]
[1610317600624,44.35898214,1282.4,1281.9,1.19529135]
[1610317601227,42.44651704,1282.0,1281.9,1.19529135]
[1610317602225,30.0,1282.0,1281.9,1.19529135]
[1610317602625,44.3609321,1282.2,1281.9,1.19529135]
[1610317602825,14.36285116,1282.1,1281.9,1.19529135]
[1610317603026,18.37244116,1282.1,1281.9,1.19529135]
[1610317603427,14.36395481,1282.0,1281.9,1.19529135]
[1610317603626,44.36395481,1282.0,1281.8,1.19576536]
[1610317603829,30.0,1282.0,1281.8,1.19576536]
[1610317604027,32.0337,1282.0,1281.8,1.19576536]
[1610317604427,16.28209342,1281.9,1281.8,1.19576536]
[1610317604627,46.28209342,1281.9,1281.8,1.19576536]
[1610317604927,50.29168342,1281.9,1281.3,1.19607843]
[1610317605128,34.00959,1281.9,1281.3,1.19607843]
[1610317605327,14.36941158,1281.4,1281.3,1.19607843]
[1610317605730,16.63371158,1281.4,1281.3,1.19607843]
[1610317606032,2.2643,1281.4,1281.3,1.19607843]
[1610317607033,6.27389,1281.4,1281.3,1.19607843]
[1610317607235,22.5629027,1281.4,1281.3,1.19607843]
[1610317607434,36.27389,1281.4,1281.3,1.19607843]
[1610317607735,54.48156204,1281.4,1281.2,58.5132]
[1610317608334,18.2086569,1281.3,1281.2,58.5132]
[1610317608534,48.2086569,1281.3,1281.2,58.5132]
[1610317608734,18.2086569,1281.3,1281.2,58.5132]
[1610317609734,48.2086569,1281.3,1281.2,58.5132]
[1610317611134,48.2086569,1281.3,1280.3,4.00959]
[1610317611334,18.2086569,1281.3,1280.3,4.00959]
[1610317611535,24.1552569,1281.3,1280.3,4.00959]
[1610317611737,12.45962085,1280.6,1280.3,4.00959]
[1610317611940,8.6261875,1280.4,1280.3,4.00959]
[1610317612737,10.54205368,1280.5,1280.3,4.00959]
[1610317612738,8.62578101,1280.5,1280.3,4.00959]
[1610317612937,8.62597168,1280.4,1280.3,5.78919]
[1610317613339,8.62597168,1280.4,1280.3,6.98575056]
[1610317617347,10.5423333,1280.5,1280.3,6.98575056]
[1610317617949,10.54255513,1280.4,1280.3,6.98575056]
[1610317621556,12.45936721,1280.7,1280.3,6.98575056]
[1610317621557,10.54318975,1280.5,1280.3,6.98575056]
[1610317621858,8.62675512,1280.4,1280.3,6.98575056]
[1610317622459,8.62675512,1280.4,1280.3,5.78919]
[1610317622656,10.54318975,1280.5,1280.3,5.78919]
[1610317622657,8.62666045,1280.5,1280.3,5.78919]
[1610317623258,8.62515318,1280.8,1280.3,5.78919]
[1610317623658,8.62402335,1281.0,1280.3,5.78919]
[1610317623859,12.45479442,1281.3,1280.3,5.78919]
[1610317623860,8.62326148,1281.2,1280.3,5.78919]
[1610317624561,12.45191966,1281.6,1280.3,5.78919]
[1610317624562,8.62083112,1281.5,1280.3,5.78919]
[1610317625060,8.62083112,1281.5,1281.4,6.22959]
[1610317625260,10.53550766,1281.6,1281.4,6.22959]
[1610317625261,8.62011134,1281.6,1281.4,6.22959]
[1610317625661,8.61936193,1281.7,1281.4,6.22959]
[1610317625962,8.61879811,1281.8,1281.4,6.22959]
[1610317626364,8.61856039,1281.9,1281.4,6.22959]
[1610317627064,8.61824499,1282.0,1281.8,4.00959]
[1610317627264,8.61824499,1282.0,1281.8,5.71399]
[1610317628564,8.61824499,1282.0,1281.9,1.19526833]
[1610317630070,8.61790915,1282.1,1281.9,1.19526833]
[1610317631070,8.61790915,1282.1,1282.0,4.00959]
[1610317631572,8.61744415,1282.2,1282.0,4.00959]
[1610317632669,8.61644772,1282.3,1282.1,1.19516208]
[1610317633069,8.61644772,1282.3,1282.2,4.00959]
[1610317633470,8.61609833,1282.4,1282.2,4.00959]
[1610317633968,8.61609833,1282.4,1282.2,5.20465123]
[1610317634368,8.61512243,1282.5,1282.2,5.20465123]
[1610317635168,8.61512243,1282.5,1282.4,4.00959]
[1610317635569,8.61512243,1282.5,1282.4,5.59229]
[1610317636673,8.61282572,1282.6,1282.4,5.59229]
[1610317637074,8.61282572,1282.6,1282.4,6.78698683]
[1610317637273,8.61312582,1282.7,1282.4,6.78698683]
[1610317638077,8.61328953,1282.6,1282.4,6.78698683]
[1610317638275,8.61328064,1282.7,1282.4,6.78698683]
[1610317638477,8.61328064,1282.7,1282.5,1.1947013]
[1610317639276,8.61361838,1282.6,1282.5,1.1947013]
[1610317639476,8.61362654,1282.7,1282.5,1.1947013]
[1610317639876,8.61309925,1282.6,1282.5,1.1947013]
[1610317641275,8.61309925,1282.6,1282.5,5.2042913]
[1610317641976,8.6127257,1282.7,1282.5,5.2042913]
[1610317643779,8.61280111,1282.8,1282.5,5.2042913]
[1610317644283,8.61280111,1282.8,1282.6,1.19468104]
[1610317645384,8.61280111,1282.8,1282.7,4.00959]
[1610317645584,8.61280111,1282.8,1282.7,6.43339]
[1610317645983,10.52560086,1282.9,1282.7,6.43339]
[1610317645984,8.61184804,1282.9,1282.7,6.43339]
[1610317646985,8.61089424,1283.0,1282.8,1.19438068]
[1610317647487,8.61089424,1283.0,1282.9,4.00959]
[1610317648286,8.61089424,1283.0,1282.9,5.20399589]
[1610317648987,8.61020595,1283.1,1282.9,5.20399589]
[1610317649586,8.6093576,1283.2,1282.9,5.20399589]
[1610317649988,8.60873374,1283.3,1282.9,5.20399589]
[1610317650888,8.60873374,1283.3,1283.0,1.19416815]
[1610317651289,8.60873374,1283.3,1283.0,3.60426815]
[1610317651490,8.60873374,1283.3,1283.2,4.00959]
[1610317651891,8.60885997,1283.4,1283.2,4.00959]
[1610317652190,8.60885997,1283.4,1283.2,5.20373021]
[1610317652390,10.52097052,1283.4,1283.2,5.20373021]
[1610317652589,10.52081081,1283.3,1283.2,5.20373021]
[1610317652991,10.52109134,1283.4,1283.2,5.20373021]
[1610317653693,8.60856605,1283.3,1283.2,5.20373021]
[1610317655191,8.60827956,1283.4,1283.2,5.20373021]
[1610317656591,8.60755079,1283.5,1283.3,1.19395274]
[1610317656792,8.60755079,1283.5,1283.3,3.04425274]
[1610317657391,8.60755079,1283.5,1283.4,4.00959]
[1610317657790,8.60755079,1283.5,1283.4,5.20348931]
[1610317658197,8.60659122,1283.7,1283.4,5.20348931]
[1610317659394,8.60659122,1283.7,1283.6,4.00959]
[1610317659593,8.60659122,1283.7,1283.6,6.04959]
[1610317660695,8.60659122,1283.7,1283.6,7.24341632]
[1610317672410,10.51612557,1283.9,1283.6,7.24341632]
[1610317672411,8.60488422,1283.8,1283.6,7.24341632]
[1610317673210,8.60488422,1283.8,1283.7,1.1935942]
[1610317673411,8.6047934,1283.9,1283.7,1.1935942]
[1610317673611,8.6047934,1283.9,1283.8,4.00959]
[1610317673813,10.51595429,1283.9,1283.8,4.00959]
[1610317674712,10.51595429,1283.9,1283.8,5.20318187]
[1610317675712,10.51557826,1284.0,1283.8,5.20318187]
[1610317676012,10.51556857,1283.9,1283.8,5.20318187]
[1610317676717,10.51547083,1284.0,1283.8,5.20318187]
[1610317677115,12.42715372,1284.2,1283.8,5.20318187]
[1610317677116,10.51557203,1283.9,1283.8,5.20318187]
[1610317677617,10.51557203,1283.9,1283.8,4.00959]
[1610317678818,10.51557203,1283.9,1283.8,5.20314375]
[1610317679220,10.51551375,1284.0,1283.8,5.20314375]
[1610317679618,10.51565092,1283.9,1283.8,5.20314375]
[1610317680321,10.51565092,1283.9,1283.8,4.00959]
[1610317680621,10.51529111,1284.0,1283.8,4.00959]
[1610317681322,8.60420972,1283.9,1283.8,4.00959]
[1610317683024,10.51529111,1284.0,1283.8,5.20312151]
[1610317683323,8.60432922,1283.9,1283.8,5.20312151]
[1610317684425,10.51562035,1283.9,1283.8,5.20312151]
[1610317684624,10.51562587,1284.0,1283.8,5.20312151]
[1610317684926,8.60435427,1283.9,1283.8,5.20312151]
[1610317685325,8.60435427,1283.9,1283.8,4.00959]
[1610317685826,8.60435427,1283.9,1283.8,5.20309321]
[1610317690330,8.60362336,1284.0,1283.8,5.20309321]
[1610317690530,10.51447808,1284.1,1283.8,5.20309321]
[1610317690531,8.60372014,1283.9,1283.8,5.20309321]
[1610317692232,8.60342083,1284.0,1283.8,5.20309321]
[1610317692833,38.60342083,1284.0,1283.8,5.20309321]
[1610317693033,38.60342083,1284.0,1283.9,1.19346701]
[1610317693234,38.60342083,1284.0,1283.9,3.54116701]
[1610317694234,8.60342083,1284.0,1283.9,3.54116701]
[1610317695134,38.60342083,1284.0,1283.9,3.54116701]
[1610317695335,30.0,1284.0,1283.9,3.54116701]
[1610317695736,40.51438688,1284.1,1283.9,3.54116701]
[1610317696137,10.51438688,1284.1,1283.9,3.54116701]
[1610317696840,10.51469086,1284.0,1283.9,3.54116701]
[1610317697343,10.51469086,1284.0,1283.9,2.3477]
[1610317697543,10.5144231,1284.1,1283.9,2.3477]